bitfinex-derivatives/quotes_BTCF0:USTF0_20260107
["timestamp","ask_amount","ask_price","bid_price","bid_amount"]
[1767751747342,0.102638,92659.0,92641.0,0.02992265]
[1767751747549,0.010798,92657.0,92641.0,0.01912265]
[1767751747748,0.09184,92659.0,92641.0,0.01912265]
[1767751747938,0.09184,92659.0,92619.0,0.010802]
[1767751747939,0.0108,92636.0,92619.0,0.010802]
[1767751748141,0.19478419,92631.0,92613.0,0.05851355]
[1767751748447,0.09144077,92630.0,92610.0,0.09184]
[1767751748748,0.010802,92623.0,92610.0,0.09184]
[1767751749347,0.010802,92626.0,92610.0,0.09184]
[1767751750550,0.010801,92629.0,92610.0,0.11096265]
[1767751751256,0.010801,92629.0,92611.0,0.01912265]
[1767751751752,0.010802,92627.0,92611.0,0.01912265]
[1767751751955,0.09184,92632.0,92611.0,0.01912265]
[1767751752448,0.18328077,92632.0,92611.0,0.01912265]
[1767751752653,0.010802,92621.0,92611.0,0.01912265]
[1767751752844,0.010802,92621.0,92610.0,0.09184]
[1767751753146,0.010801,92627.0,92610.0,0.102643]
[1767751753352,0.010801,92627.0,92610.0,0.12176565]
[1767751753555,0.010801,92627.0,92612.0,0.01912265]
[1767751754658,0.010802,92625.0,92612.0,0.01912265]
[1767751754851,0.010802,92623.0,92612.0,0.01912265]
[1767751755648,0.010802,92620.0,92612.0,0.01912265]
[1767751755857,0.010803,92617.0,92609.0,0.00215963]
[1767751756359,0.010802,92621.0,92609.0,0.00215963]
[1767751757764,0.010802,92624.0,92609.0,0.00215963]
[1767751758967,0.09144077,92626.0,92609.0,0.00215963]
[1767751758968,0.010802,92623.0,92609.0,0.00215963]
[1767751759760,0.010802,92621.0,92609.0,0.00215963]
[1767751761261,0.010802,92624.0,92609.0,0.00215963]
[1767751761468,0.010802,92624.0,92609.0,0.02128228]
[1767751763483,0.010802,92622.0,92609.0,0.02128228]
[1767751763683,0.09144077,92625.0,92609.0,0.00215963]
[1767751763888,0.010802,92621.0,92609.0,0.00215963]
[1767751764679,0.09144077,92625.0,92610.0,0.010803]
[1767751764983,0.09184,92632.0,92612.0,0.01912265]
[1767751764984,0.09144077,92631.0,92612.0,0.01912265]
[1767751765173,0.09144077,92629.0,92609.0,0.00215963]
[1767751765567,0.010802,92624.0,92609.0,0.00215963]
[1767751765770,0.010802,92622.0,92609.0,0.00215963]
[1767751766876,0.11019035,92629.0,92609.0,0.00215963]
[1767751767078,0.09144077,92621.0,92599.0,0.02992765]
[1767751767280,0.010803,92611.0,92599.0,0.05833226]
[1767751767482,0.010803,92613.0,92598.0,0.010805]
[1767751767683,0.010803,92615.0,92599.0,0.010805]
[1767751767880,0.09144077,92616.0,92597.0,0.01912265]
[1767751768079,0.10224377,92616.0,92599.0,0.02992765]
[1767751768390,0.010803,92614.0,92599.0,0.02992765]
[1767751768687,0.010803,92615.0,92599.0,0.02992765]
[1767751769692,0.09144077,92616.0,92599.0,0.01912265]
[1767751770387,0.10224377,92616.0,92601.0,0.010804]
[1767751770593,0.09144077,92616.0,92599.0,0.01912265]
[1767751771094,0.09144077,92616.0,92596.0,0.0898127]
[1767751771284,0.09144077,92616.0,92596.0,0.02992765]
[1767751771594,0.09144077,92616.0,92597.0,0.01870492]
[1767751772286,0.010803,92613.0,92597.0,0.01870492]
[1767751773795,0.010803,92613.0,92598.0,0.010805]
[1767751773997,0.09144077,92616.0,92600.0,0.010805]
[1767751774392,0.010802,92619.0,92600.0,0.01870492]
[1767751774694,0.010803,92617.0,92601.0,0.01870492]
[1767751774895,0.010803,92614.0,92599.0,0.010805]
[1767751775094,0.0999253,92617.0,92597.0,0.01870492]
[1767751775395,0.010803,92612.0,92597.0,0.01870492]
[1767751775593,0.010803,92612.0,92597.0,0.02950992]
[1767751775893,0.0999253,92617.0,92597.0,0.01870492]
[1767751776193,0.09184,92620.0,92608.0,0.01870492]
[1767751776789,0.09184,92620.0,92605.0,0.02950892]
[1767751776990,0.09184,92620.0,92605.0,0.01870492]
[1767751777187,0.09184,92625.0,92616.0,0.01870492]
[1767751779198,0.09184,92625.0,92612.0,0.010803]
[1767751779388,0.09184,92625.0,92613.0,0.01870492]
[1767751782690,0.09184,92625.0,92618.0,0.010802]
[1767751782889,0.0999253,92640.0,92625.0,0.010802]
[1767751783090,0.09184,92636.0,92625.0,0.010802]
[1767751783395,0.0999253,92640.0,92625.0,0.010802]
[1767751783594,0.09399893,92639.0,92625.0,0.010802]
[1767751783796,0.19392423,92639.0,92625.0,0.010802]
[1767751783996,0.19392423,92639.0,92622.0,0.010802]
[1767751784395,0.0108,92638.0,92620.0,0.01870492]
[1767751784694,0.0108,92638.0,92619.0,0.010802]
[1767751784695,0.0108,92636.0,92619.0,0.010802]
[1767751785695,0.0999253,92638.0,92620.0,0.010802]
[1767751786193,0.0999253,92638.0,92622.0,0.010802]
[1767751787502,0.0999253,92638.0,92619.0,0.01870492]
[1767751787503,0.11678052,92619.0,92599.0,0.01870492]
[1767751787703,0.010803,92610.0,92595.0,0.09184]
[1767751787998,0.0999253,92610.0,92590.0,0.11054492]
[1767751788194,0.010803,92615.0,92597.0,0.02950992]
[1767751788392,0.0999253,92617.0,92597.0,0.02950992]
[1767751788590,0.010803,92615.0,92596.0,0.010805]
[1767751788789,0.010803,92613.0,92596.0,0.010805]
[1767751788994,0.010803,92613.0,92593.0,0.11647686]
[1767751789194,0.1107283,92615.0,92598.0,0.010805]
[1767751789692,0.1107283,92615.0,92593.0,0.11647686]
[1767751789693,0.010803,92610.0,92594.0,0.01870492]
[1767751790098,0.010803,92613.0,92594.0,0.02950992]
[1767751790299,0.010803,92613.0,92596.0,0.010805]
[1767751795704,0.0999253,92615.0,92598.0,0.010805]
[1767751795901,0.010803,92614.0,92598.0,0.010805]
[1767751796301,0.0999253,92615.0,92594.0,0.01870492]
[1767751796498,0.1107283,92615.0,92594.0,0.01870492]
[1767751797209,0.010803,92614.0,92598.0,0.010805]
[1767751798005,0.010803,92614.0,92598.0,0.02950992]
[1767751798602,0.010803,92614.0,92595.0,0.010805]
[1767751799000,0.010802,92626.0,92590.0,0.15222207]
[1767751799001,0.11968264,92627.0,92603.0,0.01870492]
[1767751799201,0.11968264,92627.0,92607.0,0.01870492]
[1767751799202,0.010802,92620.0,92607.0,0.01870492]
[1767751799503,0.11968264,92619.0,92598.0,0.01870492]
[1767751799692,0.010803,92615.0,92599.0,0.010805]
[1767751799892,0.0999253,92618.0,92598.0,0.01870492]
[1767751800091,0.0999253,92618.0,92599.0,0.01870492]
[1767751800710,0.010803,92617.0,92600.0,0.01870492]
[1767751801003,0.0999253,92618.0,92602.0,0.01870492]
[1767751801606,0.010803,92617.0,92598.0,0.11684372]
[1767751802012,0.010803,92617.0,92599.0,0.01907178]
[1767751803211,0.010803,92617.0,92599.0,0.02987678]
[1767751804108,0.010803,92615.0,92599.0,0.02987678]
[1767751804704,0.0999253,92618.0,92599.0,0.01907178]
[1767751804913,0.0999253,92618.0,92596.0,0.010805]
[1767751804914,0.010805,92600.0,92591.0,0.09184]
[1767751805102,0.09088716,92594.0,92580.0,0.09184]
[1767751805409,0.09088716,92593.0,92580.0,0.09184]
[1767751806117,0.010806,92592.0,92580.0,0.09184]
[1767751806302,0.09088716,92593.0,92580.0,0.09184]
[1767751807207,0.10169216,92600.0,92581.0,0.01864859]
[1767751807513,0.10169216,92600.0,92580.0,0.09184]
[1767751808215,0.10169216,92600.0,92581.0,0.010807]
[1767751810512,0.10169216,92600.0,92583.0,0.010807]
[1767751811025,0.09088716,92600.0,92583.0,0.010807]
[1767751811925,0.10169216,92600.0,92580.0,0.102647]
[1767751813323,0.10169216,92600.0,92582.0,0.010807]
[1767751815223,0.11971442,92600.0,92582.0,0.010807]
[1767751815427,0.09088716,92599.0,92582.0,0.010807]
[1767751817427,0.09088716,92599.0,92580.0,0.11048859]
[1767751817727,0.09088716,92598.0,92580.0,0.12129559]
[1767751818124,0.10169216,92597.0,92580.0,0.102647]
[1767751819229,0.09088716,92597.0,92580.0,0.102647]
[1767751819624,0.09088716,92597.0,92582.0,0.010807]
[1767751820228,0.09088716,92609.0,92588.0,0.01864859]
[1767751820433,0.010803,92610.0,92593.0,0.01864859]
[1767751820628,0.01096783,92611.0,92594.0,0.010805]
[1767751820835,0.09088716,92612.0,92594.0,0.010805]
[1767751821135,0.10169016,92611.0,92594.0,0.010805]
[1767751822734,0.09088716,92611.0,92596.0,0.010805]
[1767751822929,0.09088716,92611.0,92593.0,0.01864859]
[1767751823135,0.09088716,92611.0,92593.0,0.02945359]
[1767751823428,0.010803,92610.0,92593.0,0.02945359]
[1767751823626,0.10169016,92610.0,92593.0,0.02945359]
[1767751823828,0.10169016,92610.0,92593.0,0.010805]
[1767751824136,0.10169016,92610.0,92580.0,0.09184]
[1767751824137,0.010804,92604.0,92586.0,0.010806]
[1767751824319,0.10608829,92606.0,92585.0,0.01864859]
[1767751825234,0.10608829,92604.0,92585.0,0.01864859]
[1767751825830,0.09088716,92608.0,92590.0,0.10348714]
[1767751826023,0.09088716,92606.0,92590.0,0.10348714]
[1767751826218,0.09088716,92606.0,92587.0,0.01864859]
[1767751826430,0.09088716,92606.0,92590.0,0.010806]
[1767751827032,0.09088716,92606.0,92587.0,0.01864859]
[1767751827234,0.09088716,92606.0,92588.0,0.01864859]
[1767751827431,0.09088716,92618.0,92596.0,0.10348714]
[1767751827631,0.09088716,92618.0,92595.0,0.01864859]
[1767751827632,0.10608461,92618.0,92608.0,0.10348714]
[1767751827934,0.09088716,92610.0,92596.0,0.010805]
[1767751828436,0.09088716,92610.0,92598.0,0.010805]
[1767751829231,0.09088716,92610.0,92594.0,0.09188]
[1767751829433,0.09088716,92610.0,92597.0,0.010805]
[1767751830035,0.09088716,92610.0,92594.0,0.09188]
[1767751830036,0.09088716,92610.0,92598.0,0.010805]
[1767751831735,0.09088716,92610.0,92600.0,0.10348714]
[1767751831932,0.10175377,92614.0,92600.0,0.10348714]
[1767751832127,0.09095077,92612.0,92600.0,0.10348714]
[1767751832336,0.09095077,92612.0,92600.0,0.11429214]
[1767751833137,0.09095077,92612.0,92601.0,0.010804]
[1767751834240,0.09095077,92612.0,92600.0,0.11429214]
[1767751835141,0.10448749,92612.0,92600.0,0.11429214]
[1767751835342,0.10448749,92612.0,92603.0,0.010804]
[1767751835932,0.10324842,92620.0,92593.0,0.09188]
[1767751836243,0.10324842,92620.0,92608.0,0.010804]
[1767751838043,0.09492414,92615.0,92610.0,0.010803]
[1767751839144,0.0108,92641.0,92602.0,0.01665731]
[1767751839437,0.0108,92641.0,92596.0,0.010805]
[1767751839438,0.09188,92638.0,92625.0,0.010802]
[1767751839630,0.09188,92638.0,92627.0,0.010801]
[1767751840126,0.10299659,92638.0,92627.0,0.010801]
[1767751840331,0.10299659,92638.0,92620.0,0.10348714]
[1767751840332,0.09188,92638.0,92620.0,0.11428914]
[1767751840530,0.09188,92638.0,92620.0,0.12014445]
[1767751840832,0.09188,92638.0,92629.0,0.010801]
[1767751841843,0.09188,92638.0,92626.0,0.010801]
[1767751842143,0.09188,92638.0,92628.0,0.010801]
[1767751844141,0.09188,92638.0,92626.0,0.010801]
[1767751844343,0.09815332,92638.0,92627.0,0.010801]
[1767751844944,0.00627332,92637.0,92627.0,0.010801]
[1767751845336,0.00627332,92637.0,92624.0,0.010802]
[1767751845639,0.00631528,92637.0,92620.0,0.10348714]
[1767751845837,0.00631528,92637.0,92624.0,0.010802]
[1767751847041,0.00631528,92637.0,92616.0,0.010803]
[1767751847042,0.010799,92652.0,92630.0,0.010801]
[1767751847238,0.09095077,92660.0,92630.0,0.10348714]
[1767751847239,0.00611293,92646.0,92630.0,0.10348714]
[1767751847438,0.00611293,92646.0,92630.0,0.11428814]
[1767751848447,0.00611293,92646.0,92633.0,0.010801]
[1767751848747,0.09095077,92653.0,92635.0,0.0108]
[1767751849039,0.010799,92651.0,92632.0,0.010801]
[1767751849236,0.01722017,92651.0,92632.0,0.010801]
[1767751849437,0.00642117,92651.0,92634.0,0.010801]
[1767751849833,0.00624133,92650.0,92634.0,0.010801]
[1767751850541,0.01115244,92656.0,92625.0,0.09184]
[1767751850542,0.010798,92656.0,92640.0,0.10348714]
[1767751850848,0.09698999,92657.0,92640.0,0.10348714]
[1767751851038,0.102638,92658.0,92640.0,0.11428714]
[1767751851946,0.09184,92658.0,92642.0,0.0108]
[1767751852247,0.09184,92658.0,92642.0,0.02745731]
[1767751852639,0.09184,92658.0,92642.0,0.01665731]
[1767751852945,0.09184,92658.0,92641.0,0.1078958]
[1767751853534,0.00603922,92661.0,92641.0,0.1078958]
[1767751853733,0.00603922,92661.0,92643.0,0.0108]
[1767751854249,0.09095077,92662.0,92645.0,0.010799]
[1767751854651,0.09095077,92662.0,92650.0,0.10348714]
[1767751854848,0.01558925,92664.0,92647.0,0.010799]
[1767751855042,0.010797,92662.0,92644.0,0.010799]
[1767751855242,0.01539196,92662.0,92644.0,0.010799]
[1767751855550,0.01539196,92662.0,92646.0,0.010799]
[1767751856648,0.00459496,92662.0,92646.0,0.010799]
[1767751856946,0.01539196,92662.0,92645.0,0.010799]
[1767751857246,0.00318305,92655.0,92640.0,0.16321112]
[1767751857452,0.01381704,92659.0,92644.0,0.010799]
[1767751857747,0.00301904,92659.0,92646.0,0.010799]
[1767751857947,0.09184,92665.0,92649.0,0.10348714]
[1767751858246,0.09184,92672.0,92655.0,0.10348714]
[1767751858438,0.09184,92672.0,92659.0,0.10348714]
[1767751858637,0.09184,92672.0,92657.0,0.010798]
[1767751858837,0.09184,92672.0,92656.0,0.010798]
[1767751859038,0.09184,92672.0,92660.0,0.010798]
[1767751859234,0.010795,92682.0,92666.0,0.01665731]
[1767751859444,0.010795,92682.0,92670.0,0.10348714]
[1767751859751,0.00282765,92685.0,92665.0,0.0970958]
[1767751860043,0.010796,92676.0,92665.0,0.0970958]
[1767751860248,0.010796,92676.0,92662.0,0.01665731]
[1767751860552,0.010795,92680.0,92664.0,0.11375311]
[1767751860736,0.010795,92680.0,92665.0,0.010797]
[1767751861142,0.010795,92682.0,92667.0,0.010797]
[1767751861344,0.010795,92679.0,92664.0,0.0970958]
[1767751862255,0.00620556,92677.0,92659.0,0.010798]
[1767751862463,0.00600357,92661.0,92647.0,0.010799]
[1767751862658,0.00600357,92662.0,92651.0,0.09184]
[1767751862949,0.00600357,92662.0,92647.0,0.05819856]
[1767751863165,0.09380811,92663.0,92646.0,0.010799]
[1767751863450,0.010797,92663.0,92646.0,0.010799]
[1767751863652,0.010797,92663.0,92646.0,0.07089523]
[1767751864061,0.010797,92663.0,92646.0,0.06009623]
[1767751864353,0.010797,92663.0,92645.0,0.102639]
[1767751864556,0.010797,92663.0,92645.0,0.19842447]
[1767751864855,0.010797,92663.0,92647.0,0.010799]
[1767751865454,0.010797,92663.0,92645.0,0.24775798]
[1767751865455,0.010798,92661.0,92645.0,0.24775798]
[1767751866954,0.010797,92664.0,92645.0,0.24775798]
[1767751867248,0.010797,92664.0,92646.0,0.09578547]
[1767751867452,0.010797,92667.0,92649.0,0.010799]
[1767751867656,0.00392871,92668.0,92651.0,0.010799]
[1767751867953,0.08301111,92669.0,92651.0,0.010799]
[1767751868650,0.00373429,92671.0,92653.0,0.010798]
[1767751868851,0.00373429,92670.0,92653.0,0.010798]
[1767751870747,0.00373429,92670.0,92651.0,0.07639365]
[1767751870748,0.010797,92666.0,92651.0,0.07639365]
[1767751870954,0.010797,92666.0,92646.0,0.10658447]
[1767751871157,0.010797,92666.0,92647.0,0.07639365]
[1767751871349,0.010797,92664.0,92647.0,0.09578547]
[1767751871758,0.00291905,92664.0,92645.0,0.06013251]
[1767751872058,0.010799,92649.0,92635.0,0.07639365]
[1767751872249,0.010799,92652.0,92635.0,0.07639365]
[1767751872450,0.010799,92652.0,92635.0,0.16819365]
[1767751872650,0.010799,92652.0,92637.0,0.07639365]
[1767751872954,0.010799,92650.0,92637.0,0.07639365]
[1767751873150,0.01352599,92653.0,92634.0,0.010801]
[1767751873353,0.010799,92651.0,92634.0,0.17899465]
[1767751873553,0.010799,92651.0,92635.0,0.07639365]
[1767751873754,0.010799,92651.0,92635.0,0.09578547]
[1767751873952,0.010799,92651.0,92636.0,0.07639365]
[1767751874152,0.010799,92651.0,92639.0,0.00215893]
[1767751874365,0.010798,92654.0,92639.0,0.00215893]
[1767751874650,0.010799,92652.0,92639.0,0.00215893]
[1767751877356,0.00118566,92657.0,92639.0,0.00215893]
[1767751877556,0.010798,92653.0,92639.0,0.00215893]
[1767751878259,0.010799,92648.0,92639.0,0.00215893]
[1767751878457,0.010799,92651.0,92639.0,0.00215893]
[1767751879865,0.005799,92651.0,92639.0,0.00215893]
[1767751880361,0.010798,92654.0,92639.0,0.00215893]
[1767751880865,0.010799,92651.0,92639.0,0.00215893]
[1767751882361,0.00118566,92657.0,92639.0,0.00215893]
[1767751882560,0.102597,92665.0,92630.0,0.05809296]
[1767751882561,0.0108,92640.0,92630.0,0.05809296]
[1767751882763,0.10348714,92640.0,92631.0,0.010801]
[1767751882975,0.16561556,92650.0,92630.0,0.09184]
[1767751883159,0.0108,92644.0,92630.0,0.09184]
[1767751883668,0.010799,92645.0,92631.0,0.010801]
[1767751883856,0.15050246,92655.0,92632.0,0.07639365]
[1767751884056,0.010799,92647.0,92633.0,0.08719465]
[1767751884453,0.010799,92647.0,92633.0,0.10658647]
[1767751884658,0.010799,92647.0,92634.0,0.07639365]
[1767751886066,0.010799,92646.0,92634.0,0.07639365]
[1767751886268,0.010799,92647.0,92635.0,0.0108]
[1767751886469,0.010799,92647.0,92634.0,0.07639365]
[1767751886770,0.010799,92646.0,92634.0,0.07639365]
[1767751886967,0.05948747,92654.0,92634.0,0.07639365]
[1767751887268,0.010799,92645.0,92634.0,0.07639365]
[1767751887468,0.010799,92646.0,92634.0,0.07639365]
[1767751887665,0.04868947,92654.0,92634.0,0.07639365]
[1767751887866,0.0108,92642.0,92634.0,0.07639365]
[1767751888066,0.0108,92640.0,92634.0,0.07639365]
[1767751888366,0.0108,92642.0,92634.0,0.07639365]
[1767751888867,0.0108,92640.0,92634.0,0.07639365]
[1767751889670,0.0108,92640.0,92630.0,0.09184]
[1767751889870,0.0108,92640.0,92630.0,0.16823365]
[1767751890270,0.0108,92640.0,92631.0,0.07639365]
[1767751891669,0.010801,92635.0,92630.0,0.09184]
[1767751891976,0.0108,92636.0,92626.0,0.0581583]
[1767751892168,0.0108,92636.0,92621.0,0.04585633]
[1767751892568,0.0108,92636.0,92622.0,0.04585633]
[1767751893270,0.010801,92634.0,92622.0,0.05665833]
[1767751893873,0.010801,92634.0,92622.0,0.07406858]
[1767751894175,0.010801,92634.0,92623.0,0.04585633]
[1767751895573,0.010801,92631.0,92623.0,0.04585633]
[1767751895778,0.02954436,92644.0,92621.0,0.04585633]
[1767751895977,0.010801,92635.0,92622.0,0.06326658]
[1767751896278,0.010801,92635.0,92623.0,0.04585633]
[1767751896878,0.0108,92638.0,92625.0,0.04585633]
[1767751897070,0.09184,92645.0,92625.0,0.04585633]
[1767751897981,0.0108,92637.0,92625.0,0.04585633]
[1767751898881,0.010801,92635.0,92625.0,0.04585633]
[1767751899073,0.00760815,92644.0,92620.0,0.04585633]
[1767751899384,0.010801,92631.0,92620.0,0.04585633]
[1767751899974,0.0108,92640.0,92620.0,0.04585633]
[1767751900579,0.010801,92631.0,92620.0,0.04585633]
[1767751900780,0.010801,92629.0,92620.0,0.04585633]
[1767751900982,0.010801,92634.0,92625.0,0.04585633]
[1767751901180,0.0108,92643.0,92627.0,0.05665733]
[1767751901383,0.09184,92645.0,92627.0,0.05665733]
[1767751901977,0.0108,92639.0,92627.0,0.05665733]
[1767751902386,0.0108,92642.0,92627.0,0.05665733]
[1767751902581,0.0108,92642.0,92617.0,0.010802]
[1767751902582,0.2003,92675.0,92636.0,0.01741025]
[1767751902777,0.010799,92649.0,92641.0,0.04585633]
[1767751902977,0.102639,92649.0,92641.0,0.04585633]
[1767751903182,0.102639,92649.0,92625.0,0.0601766]
[1767751903183,0.2003,92675.0,92646.0,0.01741025]
[1767751903481,0.09184,92668.0,92650.0,0.04585633]
[1767751903690,0.09184,92668.0,92651.0,0.04585633]
[1767751905085,0.09184,92668.0,92647.0,0.010799]
[1767751905579,0.09184,92668.0,92647.0,0.02820925]
[1767751906891,0.010797,92667.0,92651.0,0.010799]
[1767751907084,0.010797,92665.0,92651.0,0.010799]
[1767751908482,0.010797,92665.0,92648.0,0.05665533]
[1767751908678,0.010797,92663.0,92648.0,0.05665533]
[1767751909686,0.010797,92661.0,92648.0,0.04585633]
[1767751912194,0.010797,92664.0,92649.0,0.05665533]
[1767751912392,0.010797,92662.0,92649.0,0.04585633]
[1767751914094,0.010797,92662.0,92647.0,0.01741025]
[1767751914999,0.010798,92660.0,92647.0,0.01741025]
[1767751916081,0.04552904,92667.0,92647.0,0.01741025]
[1767751916387,0.09184,92668.0,92649.0,0.01741025]
[1767751916587,0.09184,92668.0,92651.0,0.01741025]
[1767751916790,0.010797,92665.0,92653.0,0.01741025]
[1767751916987,0.09184,92664.0,92651.0,0.010799]
[1767751917590,0.09184,92664.0,92650.0,0.01741025]
[1767751917795,0.102637,92664.0,92650.0,0.01741025]
[1767751918182,0.09184,92664.0,92650.0,0.01741025]
[1767751918383,0.010798,92661.0,92650.0,0.01741025]
[1767751920099,0.00898175,92661.0,92642.0,0.01775693]
[1767751920600,0.010798,92656.0,92642.0,0.01775693]
[1767751921099,0.010798,92659.0,92643.0,0.0108]
[1767751921294,0.10064644,92664.0,92645.0,0.01775693]
[1767751921601,0.10064644,92664.0,92641.0,0.01841059]
[1767751921602,0.01942559,92660.0,92641.0,0.01841059]
[1767751921787,0.010799,92650.0,92640.0,0.01841059]
[1767751921985,0.010799,92648.0,92641.0,0.01841059]
[1767751922595,0.010799,92651.0,92641.0,0.01841059]
[1767751924794,0.02783542,92661.0,92641.0,0.01841059]
[1767751924998,0.010799,92648.0,92639.0,0.07862812]
[1767751925202,0.09184,92664.0,92635.0,0.06053696]
[1767751925203,0.0108,92640.0,92635.0,0.06053696]
[1767751925396,0.0108,92643.0,92629.0,0.01866055]
[1767751925602,0.0108,92643.0,92631.0,0.01866055]
[1767751926599,0.010799,92646.0,92631.0,0.01866055]
[1767751927099,0.010799,92646.0,92632.0,0.01841059]
[1767751927401,0.010799,92646.0,92635.0,0.01841059]
[1767751927996,0.010799,92651.0,92636.0,0.01866055]
[1767751928195,0.0108,92641.0,92631.0,0.01841059]
[1767751928501,0.09184,92654.0,92635.0,0.01866055]
[1767751928705,0.01759064,92653.0,92635.0,0.01866055]
[1767751929001,0.01759064,92653.0,92635.0,0.03707114]
[1767751929192,0.010799,92649.0,92635.0,0.03707114]
[1767751929397,0.010799,92649.0,92636.0,0.01841059]
[1767751929595,0.010799,92649.0,92637.0,0.01841059]
[1767751929795,0.09184,92654.0,92637.0,0.01841059]
[1767751930596,0.01759064,92653.0,92632.0,0.01841059]
[1767751930800,0.010799,92646.0,92633.0,0.01841059]
[1767751931001,0.010799,92646.0,92634.0,0.01866055]
[1767751931302,0.0108,92643.0,92635.0,0.01841059]
[1767751931698,0.010799,92646.0,92635.0,0.01841059]
[1767751934602,0.010799,92646.0,92634.0,0.01866055]
[1767751935099,0.0108,92639.0,92629.0,0.01866055]
[1767751935303,0.0108,92639.0,92626.0,0.11025059]
[1767751935495,0.09184,92654.0,92638.0,0.01841059]
[1767751935693,0.09184,92654.0,92640.0,0.01841059]
[1767751935893,0.010799,92646.0,92639.0,0.01866055]
[1767751936094,0.010799,92648.0,92639.0,0.01866055]
[1767751936495,0.010799,92648.0,92636.0,0.01841059]
[1767751936906,0.010799,92651.0,92636.0,0.01841059]
[1767751937106,0.09184,92654.0,92637.0,0.03707114]
[1767751937307,0.01759064,92652.0,92631.0,0.01866055]
[1767751937496,0.01759064,92652.0,92632.0,0.01841059]
[1767751937696,0.0108,92643.0,92633.0,0.03707114]
[1767751939808,0.01759064,92649.0,92629.0,0.01841059]
[1767751940195,0.0108,92639.0,92629.0,0.01841059]
[1767751940807,0.0108,92640.0,92629.0,0.03707114]
[1767751941012,0.03679847,92652.0,92632.0,0.03707114]
[1767751941211,0.010799,92650.0,92632.0,0.03707114]
[1767751941512,0.010799,92644.0,92632.0,0.03707114]
[1767751941807,0.010799,92644.0,92632.0,0.04787214]
[1767751942006,0.010799,92644.0,92633.0,0.03707114]
[1767751942208,0.010799,92646.0,92633.0,0.03707114]
[1767751942620,0.04759747,92652.0,92633.0,0.03707114]
[1767751942908,0.0108,92641.0,92629.0,0.01841059]
[1767751943102,0.0108,92641.0,92629.0,0.03707114]
[1767751943304,0.0108,92643.0,92636.0,0.03707114]
[1767751943601,0.0108,92643.0,92636.0,0.01866055]
[1767751944316,0.010799,92645.0,92636.0,0.01866055]
[1767751944912,0.0108,92643.0,92636.0,0.01866055]
[1767751945109,0.0108,92643.0,92630.0,0.10340504]
[1767751945611,0.0108,92643.0,92628.0,0.010801]
[1767751946014,0.03679847,92650.0,92628.0,0.010801]
[1767751946215,0.01920783,92649.0,92627.0,0.010801]
[1767751947014,0.010799,92644.0,92629.0,0.010801]
[1767751947215,0.010799,92644.0,92630.0,0.01841059]
[1767751950610,0.01759064,92643.0,92617.0,0.01841059]
[1767751950812,0.09184,92654.0,92597.0,0.0054]
[1767751950813,0.03679847,92627.0,92610.0,0.059472]
[1767751951012,0.010802,92622.0,92608.0,0.09184]
[1767751951210,0.010802,92618.0,92608.0,0.09184]
[1767751951410,0.010802,92618.0,92609.0,0.06296907]
[1767751951612,0.010802,92621.0,92609.0,0.08134674]
[1767751951804,0.010802,92619.0,92609.0,0.08134674]
[1767751952204,0.02934134,92624.0,92609.0,6.3e-07]
[1767751952415,0.010803,92612.0,92609.0,6.3e-07]
[1767751952611,0.02111545,92612.0,92609.0,6.3e-07]
[1767751953017,0.010803,92612.0,92609.0,6.3e-07]
[1767751953423,0.010804,92609.0,92596.0,0.01837767]
[1767751953720,0.010803,92612.0,92596.0,0.01837767]
[1767751953916,0.010803,92612.0,92597.0,0.01837767]
[1767751954819,0.010803,92615.0,92599.0,0.01837767]
[1767751955820,0.01031245,92617.0,92599.0,0.01837767]
[1767751957023,0.010803,92613.0,92599.0,0.01837767]
[1767751958019,0.01031245,92617.0,92599.0,0.01837767]
[1767751958206,0.010804,92609.0,92596.0,0.01837767]
[1767751959314,0.010803,92612.0,92596.0,0.01837767]
[1767751959914,0.010803,92615.0,92601.0,0.01837767]
[1767751960104,0.10340504,92620.0,92601.0,0.01837767]
[1767751960307,0.010803,92613.0,92601.0,0.01837767]
[1767751961119,0.02934134,92622.0,92601.0,0.01837767]
[1767751961411,0.010803,92614.0,92601.0,0.01837767]
[1767751964623,0.010803,92612.0,92601.0,0.01837767]
[1767751965119,0.10486036,92625.0,92610.0,0.01837767]
[1767751965319,0.09184,92625.0,92610.0,0.01837767]
[1767751965516,0.11502666,92625.0,92605.0,0.01837767]
[1767751966122,0.01031245,92622.0,92605.0,0.01837767]
[1767751966631,0.01031245,92622.0,92605.0,0.02918167]
[1767751966919,0.010803,92617.0,92606.0,0.01837767]
[1767751967118,0.010803,92615.0,92606.0,0.01837767]
[1767751967920,0.10215245,92622.0,92606.0,0.01837767]
[1767751968217,0.010803,92615.0,92606.0,0.01837767]
[1767751969317,0.10215245,92622.0,92606.0,0.01837767]
[1767751969517,0.010803,92615.0,92606.0,0.01837767]
[1767751970515,0.10215245,92622.0,92606.0,0.01837767]
[1767751970718,0.010803,92617.0,92606.0,0.01837767]
[1767751971020,0.010803,92616.0,92606.0,0.01837767]
[1767751971422,0.010803,92614.0,92601.0,0.01837767]
[1767751971819,0.01031245,92619.0,92592.0,0.01049705]
[1767751972119,0.010804,92607.0,92594.0,0.010805]
[1767751972415,0.01902889,92613.0,92596.0,0.02918267]
[1767751972416,0.010804,92609.0,92596.0,0.02918267]
[1767751972618,0.01031245,92619.0,92602.0,0.010804]
[1767751972815,0.01031245,92619.0,92600.0,0.010805]
[1767751972816,0.010803,92612.0,92600.0,0.010805]
[1767751974821,0.010803,92614.0,92600.0,0.010805]
[1767751975122,0.010803,92614.0,92601.0,0.010804]
[1767751975617,0.01031245,92619.0,92599.0,0.01837767]
[1767751975921,0.01031245,92617.0,92599.0,0.02918267]
[1767751976219,0.010803,92615.0,92600.0,0.010804]
[1767751976421,0.010803,92615.0,92599.0,0.01837767]
[1767751976922,0.10215245,92622.0,92603.0,0.01837767]
[1767751977122,0.09184,92627.0,92615.0,0.01837767]
[1767751977322,0.09184,92626.0,92615.0,0.01837767]
[1767751977721,0.09184,92626.0,92613.0,0.010803]
[1767751978408,0.09184,92626.0,92615.0,0.02918067]
[1767751979123,0.102642,92626.0,92613.0,0.010803]
[1767751979433,0.01031245,92623.0,92609.0,0.010804]
[1767751979923,0.01031245,92622.0,92604.0,0.01837767]
[1767751980418,0.02111445,92622.0,92609.0,0.010804]
[1767751980723,0.01031245,92622.0,92611.0,0.010803]